[Event "Charlotte Summer IM B 2022"]
[Site "Charlotte"]
[Date "2022.07.28"]
[Round "8.5"]
[White "Atanasov, Anthony"]
[Black "Adu, Oladapo"]
[Result "1-0"]
[ECO "D02"]
[WhiteElo "2172"]
[BlackElo "2056"]
[Annotator "TA"]
[PlyCount "107"]
[EventDate "2022.07.24"]
[EventType "tourn"]
[EventCountry "USA"]
[SourceTitle "playchess.com"]
[Source "ChessBase"]
[SourceQuality "1"]
[TimeControl "5400+30"]

{[%evp 9,107,2,18,14,18,20,11,22,24,31,25,22,22,18,40,31,49,37,60,52,40,40,64,51,72,69,125,127,131,124,126,98,91,99,92,98,116,100,122,104,131,128,147,147,146,138,173,164,171,167,196,195,203,202,197,190,179,191,270,272,223,244,231,235,231,237,304,229,255,247,273,237,291,304,306,306,275,275,352,341,393,358,504,520,559,540,637,625,615,458,607,559,1855,1474,1192,1266,790,565,29991,29992]} 1. d4 {[%emt 0:00:01]} d5 {[%emt 0:05:43]} 2. Nf3 {[%emt 0:00:34]} e6 {[%emt 0:00:10]} 3. Bf4 {[%emt 0:00:06]} c5 {[%emt 0:00:05]} 4. e3 {[%emt 0:00:04]} Nf6 {[%emt 0:00:08]} 5. Nbd2 {[%emt 0:00:23]} Bd6 {[%emt 0:00:12]} 6. dxc5 {[%emt 0:03:40] D02: 1 d4 d5 2 Nf3 sidelines, including 2...Nf6 3 g3 and 2...Nf6 3 Bf4.} Bxc5 {[%emt 0:00:19]} 7. c4 {[%emt 0:00:36]} O-O {[%emt 1:27:23]} 8. a3 {[%emt 0:02:35] [#] The position is equal.} Bd6 $146 {[%emt 0:00:00]} ({Predecessor:} 8... b6 9. Bd3 Bb7 10. O-O Nbd7 11. Qe2 Be7 12. h3 Nc5 13. Bc2 Rc8 14. Rfd1 Qe8 {½-½ (34) Donchenko,A (2584)-Tan,J (2519) Newcastle on Tyne 2019}) 9. Bxd6 {[%emt 0:02:15]} Qxd6 {[%emt 0:00:00]} 10. cxd5 {[%emt 0:02:51]} Qxd5 {[%emt 0:00:00]} 11. Bc4 {[%emt 0:01:02]} Qh5 {[%emt 0:00:00]} 12. O-O {[%emt 0:04:19]} b6 {[%emt 0:00:00]} 13. Rc1 {[%emt 0:07:47]} Bb7 {[%emt 0:00:00]} 14. Be2 {[%emt 0:17:46]} Rd8 {[%emt 0:00:00]} 15. Nd4 {[%emt 0:14:34]} Qg6 {[%emt 0:00:00][%csl Gb7][%cal Rg6g2]} 16. Bf3 {[%emt 0:01:06]} Bd5 {[%emt 0:00:00]} 17. Nc4 {[%emt 0:09:10]} Nbd7 {[%emt 0:00:00] Against Ne5} ({Black should try} 17... Qg5 $14) 18. Bxd5 $16 {[%emt 0:03:47]} Nxd5 {[%emt 0:05:30] [#]} 19. Nc6 {[%emt 0:27:24] Against e5} Rf8 {[%emt 0:00:00] [#]} 20. Qxd5 $3 {[%emt 0:00:00][%mdl 512]} exd5 {[%emt 0:00:00]} 21. Ne7+ {[%emt 0:00:00] Pair of Knights!} Kh8 {[%emt 0:00:00]} 22. Nxg6+ {[%emt 0:00:00]} hxg6 {[%emt 0:00:00]} 23. Nd6 {[%emt 0:00:00]} Kg8 {[%emt 0:00:00]} 24. Rc7 {[%emt 0:00:00]} Nf6 {[%emt 0:00:00]} 25. Rfc1 {[%emt 0:00:00]} Rad8 {[%emt 0:00:00]} 26. Nb5 {[%emt 0:00:00] 0x0.0019891f63fcdp-1022s more active pieces.} a6 {[%emt 0:00:00]} 27. Nd4 {[%emt 0:00:00]} Rd6 {[%emt 0:00:00]} 28. f3 {[%emt 0:00:00]} Re8 {[%emt 0:00:00]} 29. Kf2 {[%emt 0:00:00]} Nd7 {[%emt 0:00:00] [#]} 30. R1c6 $1 {[%emt 0:00:00]} Rxc6 {[%emt 0:00:00]} 31. Nxc6 $18 {[%emt 0:00:00][%mdl 4096] Endgame KRN-KRN} ({Resist} 31. Rxc6 $6 Kf8 $16) 31... Ne5 {[%emt 0:00:00]} 32. Ne7+ {[%emt 0:00:00]} Kf8 {[%emt 0:00:00]} 33. Nxd5 {[%emt 0:00:00]} Nd3+ {[%emt 0:07:30]} (33... g5 $142 34. Ke2 (34. Nxb6 Rb8 $18) 34... b5) 34. Ke2 {[%emt 0:00:00]} Nxb2 {[%emt 0:00:30]} 35. Nxb6 {[%emt 0:00:00] Strongly threatening Rc2.} Rd8 {[%emt 0:00:00]} 36. e4 {[%emt 0:00:00]} f6 {[%emt 0:00:00]} 37. Nd5 {[%emt 0:01:45]} Rb8 {[%emt 0:00:00]} 38. Rc6 {[%emt 0:00:46]} Rb3 {[%emt 0:00:00]} 39. Rxa6 {[%emt 0:01:30] Rb6 is the strong threat.} Nc4 {[%emt 0:02:30] Inhibits Rb6.} 40. a4 {[%emt 0:01:04] And now Ra8+ would win.} Ra3 {[%emt 0:00:00]} 41. Ra8+ {[%emt 0:00:15]} Kf7 {[%emt 0:01:00]} 42. Ra7+ {[%emt 0:00:06]} Kg8 {[%emt 0:00:00]} 43. Kf2 {[%emt 0:00:36]} Kh8 {[%emt 0:00:00]} 44. Kg3 {[%emt 0:00:28]} Ra2 {[%emt 0:00:00]} 45. h4 {[%emt 0:01:04]} Kg8 {[%emt 0:00:00]} (45... Ne5 {keeps fighting.} 46. Ne7 Kh7) 46. Nf4 {[%emt 0:01:07]} Ne3 {[%emt 0:00:00]} 47. Ne6 {[%emt 0:01:21] Prevents g5.} Rxg2+ {[%emt 0:00:00]} 48. Kf4 {[%emt 0:00:17]} Nc4 {[%emt 0:00:00]} 49. Rxg7+ {[%emt 0:00:06]} Kh8 {[%emt 0:00:00]} 50. Rf7 {[%emt 0:00:28]} f5 {[%emt 0:00:00]} 51. exf5 {[%emt 0:01:27]} gxf5 {[%emt 0:00:00]} 52. Rf8+ {[%emt 0:00:41]} Kh7 {[%emt 0:00:00]} 53. Kxf5 {[%emt 0:00:43] Hoping for Ng5+.} Ra2 {[%emt 0:00:00]} 54. Kf6 {[%emt 0:00:19] Weighted Error Value: White=0.05 (flawless) /Black=0.43} 1-0

[Event "Charlotte Summer IM B 2022"]
[Site "Charlotte"]
[Date "2022.07.29"]
[Round "9.1"]
[White "Adu, Oladapo"]
[Black "Zaloznyy, Mike"]
[Result "0-1"]
[ECO "A08"]
[WhiteElo "2056"]
[BlackElo "2171"]
[Annotator "TA"]
[PlyCount "122"]
[EventDate "2022.07.24"]
[EventType "tourn"]
[EventCountry "USA"]
[SourceTitle "playchess.com"]
[Source "ChessBase"]
[SourceQuality "1"]
[TimeControl "5400+30"]

{[%evp 12,122,0,0,0,0,21,12,11,-12,-22,-13,-21,-33,-28,-20,-20,-20,-20,-34,-6,-12,-10,-12,-33,-57,-64,-52,-52,-43,-11,-13,-8,-9,0,0,9,-8,-6,-4,-8,-10,0,-14,0,0,0,-10,-11,-24,-6,-5,0,-1,0,0,0,-3,0,0,0,0,5,-15,-17,-39,-35,-62,0,0,0,0,0,0,87,78,75,0,105,57,120,117,131,126,150,148,160,73,258,61,70,68,58,36,35,38,48,0,22,14,213,0,0,0,209,209,157,0,0,-29985,-29986,-29988,-29989]} 1. Nf3 {[%emt 0:00:02]} Nf6 {[%emt 1:31:00]} 2. g3 {[%emt 0:00:14]} b6 {[%emt 0:00:00]} 3. Bg2 {[%emt 0:00:10]} Bb7 {[%emt 0:00:00]} 4. O-O {[%emt 0:00:07]} e6 {[%emt 0:00:00]} 5. d3 {[%emt 0:00:07]} d5 {[%emt 0:00:00]} 6. Nbd2 {[%emt 0:00:12]} c5 {[%emt 0:00:00]} 7. e4 {[%emt 0:00:23]} Nc6 {[%emt 0:00:00] A08: King's Indian Attack.} 8. exd5 {[%emt 0:02:39]} exd5 {[%emt 0:00:00]} 9. Re1+ {[%emt 0:00:25]} Be7 {[%emt 0:00:00] The position is equal.} 10. Nh4 {[%emt 0:00:16]} Qd7 {[%emt 0:00:00] [#] Inhibits Nf5.} 11. Nb3 $146 {[%emt 0:00:12]} ({Predecessor:} 11. Nf1 O-O 12. Bf4 Rfe8 13. Nf3 Bd6 14. Qd2 d4 15. Rxe8+ Rxe8 16. Re1 Rxe1 17. Nxe1 {1-0 (56) Mustafaev,K (2188)-Schiendorfer,F (2075) Acri 2006}) 11... O-O {[%emt 0:00:00]} 12. c3 {[%emt 0:01:17]} a5 {[%emt 0:00:00]} 13. a4 {[%emt 0:00:19]} Rfe8 {[%emt 0:00:00]} 14. Nf3 {[%emt 0:00:25]} d4 {[%emt 0:00:00]} 15. cxd4 {[%emt 0:00:57]} cxd4 {[%emt 0:00:00]} 16. Bg5 {[%emt 0:02:35]} h6 {[%emt 0:00:00]} 17. Bxf6 {[%emt 0:07:53]} Bxf6 {[%emt 0:00:00]} 18. Rxe8+ {[%emt 0:02:22]} Rxe8 {[%emt 0:00:00]} 19. Nbd2 {[%emt 0:01:10]} Nb4 {[%emt 0:00:00]} 20. Nc4 {[%emt 0:00:40]} Qe6 {[%emt 0:00:00]} 21. Ng5 {[%emt 0:17:32]} Bxg5 {[%emt 0:00:00]} 22. Bxb7 {[%emt 0:00:01]} Qg6 {[%emt 0:00:00]} 23. Ra3 {[%emt 0:05:15]} f5 {[%emt 0:00:00]} 24. Bf3 {[%emt 0:00:19] Bh5 is the strong threat.} Qe6 {[%emt 0:00:00]} 25. Ra1 {[%emt 0:02:24]} g6 {[%emt 0:00:00]} 26. Kg2 {[%emt 0:02:05]} h5 {[%emt 0:00:00]} 27. Na3 {[%emt 0:04:29]} Rc8 {[%emt 0:13:00]} 28. h4 {[%emt 0:12:48]} Bh6 {[%emt 0:00:00]} 29. Nb5 {[%emt 0:00:16]} Kh7 {[%emt 0:00:00]} 30. Na3 {[%emt 0:04:14]} Re8 {[%emt 0:00:00]} 31. Nc4 {[%emt 0:00:29]} Qf6 {[%emt 0:00:00]} (31... f4 {is interesting.} 32. Be4 Rf8 33. Qe2 Na6) 32. Qb3 {[%emt 0:02:07][%cal Oc4b6]} Re7 33. Rf1 {[%emt 0:00:30]} Qe6 34. Qd1 {[%emt 0:00:30]} Kg7 {[%emt 0:00:00]} 35. Kg1 {[%emt 0:00:30]} Na6 {[%emt 0:00:14]} 36. Qb3 {[%emt 0:00:42]} Nc5 {[%emt 0:01:01]} 37. Qc2 {[%emt 0:00:29][%cal Oc4a5]} f4 {[%emt 0:00:48]} 38. Kg2 {[%emt 0:01:15][%cal Oc4a5]} Qf5 {[%emt 0:03:27]} 39. Rd1 fxg3 {[%emt 0:00:00] Black is more active.} (39... Re6 $15) 40. fxg3 $11 {[%emt 0:01:37]} g5 {[%emt 0:00:05]} 41. hxg5 {[%emt 0:00:47]} Qxg5 {[%emt 0:00:35]} 42. Rh1 {[%emt 0:01:14][%cal Bd1h1,Bh1h4,Bh4e4][%mdl 32]} Ne6 {[%emt 0:00:08]} (42... Qg6 $11 {keeps the balance.} 43. Bxh5 Qf5) 43. Rh4 $1 $16 {[%emt 0:01:27]} (43. Nxb6 $6 Rf7 $11) (43. Bxh5 $2 Nf4+ 44. Kf2 Nxh5 $19) 43... Rf7 {[%emt 0:00:25]} 44. Qd1 {[%emt 0:01:34]} (44. Nd6 $1 $16 {[%cal Rd6f7]} Rf8 45. Ne4) 44... Kf8 {[%emt 0:01:07]} (44... Nf4+ $1 $11 {remains equal.} 45. Kh2 Qf6) 45. Kh2 {[%emt 0:02:57]} (45. Bxh5 $16 Rf6 46. Nxb6) 45... Rg7 {[%emt 0:00:12]} ({Better is} 45... Qf6 $14 46. Rxh5 Bf4) 46. Qe1 {[%emt 0:00:16]} Qf6 {[%emt 0:00:47]} 47. Bxh5 {[%emt 0:02:04] Threatens to win with Re4.} Re7 {[%emt 0:00:11][%cal Oe6f4] [#]} 48. Re4 {[%emt 0:01:16] Inhibits Nf4. Black must now prevent Ne5.} (48. Nxb6 Ng7 49. Qxa5 Nxh5 50. Nd7+ (50. Qxh5 $2 Qf2+ 51. Kh3 Qf1+ 52. Kh2 Re2+ 53. Qxe2 Qxe2+ 54. Kh3 Qe6+ 55. Kg2 Qxb6 $19) 50... Rxd7 $11) 48... Bg5 {[%emt 0:00:37]} 49. Kg2 {[%emt 0:01:43]} (49. Nxb6 $142 Be3 50. Nd5 (50. Qxa5 Qf2+ 51. Kh3 Qf1+ 52. Kh4 Qh1+ 53. Kg4 Rg7+ 54. Kf5 Qxh5+ 55. Kxe6 Qf7+ 56. Ke5 Qc7+ 57. Kf6 Qd8+ 58. Kf5 Rg5+ 59. Ke6 Qe7#)) 49... Qh6 $2 {[%emt 0:00:31]} (49... Nc5 $16 {is a better defense.}) 50. Bg4 $2 {[%emt 0:01:40]} ({Stronger than} 50. Nxb6 Qxh5 51. Rxe6 Rh7 52. Nd7+ (52. Qe5 $2 {gets mated.} Qh1+ 53. Kf2 Rh2#) 52... Rxd7 53. Qxa5 Rf7 54. Qa8+ Kg7 $11) (50. Qf2+ $18 Qf6 51. Qxf6+ (51. Nxb6 Qxf2+ 52. Kxf2 Nc5 $16) 51... Bxf6 52. Nxb6) 50... Nc5 $14 {[%emt 0:01:22][%csl LRa4,LRd3,LRe4]} 51. Rxe7 {[%emt 0:01:04]} Bxe7 {[%emt 0:00:00]} 52. Qe5 {[%emt 0:00:44]} Qf6 {[%emt 0:00:27]} 53. Qe2 $36 {[%mdl 2048] White fights for an advantage.} Nxa4 {[%emt 0:00:30]} 54. Ne5 (54. Bd7 $14 Nc5 55. Bb5) 54... Kg7 {[%emt 0:00:30]} 55. Bd7 Nxb2 {[%emt 0:00:30] [#]} 56. Nc6 $2 ({Only move:} 56. Nf3 $1 $18 {[%cal Rf3d4]}) 56... Ba3 $11 {[%emt 0:00:30]} 57. Qg4+ Kh6 $2 {[%emt 0:00:30]} (57... Qg6 $1 $11 {and Black stays safe.} 58. Qxd4+ Qf6) 58. Nxd4 $18 {Intending Nf5+ and mate.} Nxd3 {[%emt 0:00:30] Strongly threatening ...Ne1+.} 59. Nf5+ $2 (59. Bf5 $16 Ne1+ 60. Kf1) 59... Kh7 $11 {[%emt 0:00:30] ( -> ...Qb2+)} 60. Be6 $2 {[%mdl 8192]} Qb2+ {[%emt 0:00:30]} 61. Kg1 Bc5+ {[%emt 0:00:30] Weighted Error Value: White=0.34/Black=0.31} 0-1

[Event "Charlotte Summer IM B 2022"]
[Site "Charlotte"]
[Date "2022.07.28"]
[Round "9.2"]
[White "Ringoir, Tanguy"]
[Black "Atanasov, Anthony"]
[Result "1-0"]
[ECO "D85"]
[WhiteElo "2490"]
[BlackElo "2172"]
[Annotator "TA"]
[PlyCount "51"]
[EventDate "2022.07.24"]
[EventType "tourn"]
[EventCountry "USA"]
[SourceTitle "playchess.com"]
[Source "ChessBase"]
[SourceQuality "1"]
[TimeControl "5400+30"]

{[%evp 9,51,18,23,0,0,-9,13,13,15,9,15,-8,47,46,48,41,54,8,308,314,331,284,295,302,757,760,955,936,1268,1260,1252,1196,1207,1183,2288,1912,29989,29990,29990,29991,29991,29992,29992,29993]} 1. d4 {[%emt 0:00:34]} Nf6 {[%emt 0:00:12]} 2. c4 {[%emt 0:00:03]} g6 {[%emt 0:00:12]} 3. Nc3 {[%emt 0:00:12]} d5 {[%emt 0:00:11]} 4. cxd5 {[%emt 0:00:05]} Nxd5 {[%emt 0:00:06]} 5. Bd2 {[%emt 0:00:06]} Nb6 {[%emt 0:01:48]} 6. e3 {[%emt 0:00:07] D85: Exchange Grünfeld: Unusual White 7th moves and lines with 7 Nf3.} Bg7 {[%emt 0:00:23]} 7. h4 $1 {[%emt 0:00:09][%mdl 4] is recently more successful than 7.f4.} h5 {[%emt 0:07:11]} 8. Nf3 {[%emt 0:00:24] The position is equal.} O-O {[%emt 0:04:27]} 9. Ng5 {[%emt 0:00:45]} Nc6 {[%emt 0:04:33] [#]} 10. Qb3 $146 {[%emt 0:05:21]} ({Predecessor:} 10. f4 Bf5 11. Be2 Qd7 12. e4 Bg4 13. Bxg4 Qxg4 14. Qxg4 hxg4 15. d5 Nd4 16. O-O-O {1-0 (47) Alonso Rosell,A (2570)-Suarez Uriel,A (2343) Ciudad Real 2021}) 10... e5 {[%emt 0:05:49]} (10... a5 $11) 11. d5 $14 {[%emt 0:00:10]} Ne7 {[%emt 0:00:08][%cal Re7d5]} 12. a4 {[%emt 0:02:34]} e4 {[%emt 0:13:08]} (12... Nexd5 $2 13. a5 $18) 13. Rd1 {[%emt 0:18:01]} ({Much worse is} 13. Ngxe4 a5 $11) (13. a5 $14 Nbxd5 14. Bc4) 13... Nbxd5 $2 {[%emt 0:06:02][%mdl 8192] Loses the game.} (13... a5 $11 {and Black stays safe.}) 14. Nxd5 $18 {[%emt 0:07:50]} ({Not} 14. Bc4 c6 $14) 14... Qxd5 {[%emt 0:03:51]} 15. Bc4 {[%emt 0:00:10][%cal Bf1c4,Bc4f7,Bf7d5,Bd5a8][%mdl 32]} Qf5 {[%emt 0:00:19]} 16. O-O {[%emt 0:09:28] [#] Hoping for f3.} (16. Bc3 Bxc3+ 17. Qxc3 Be6 $16) 16... a6 $2 {[%emt 0:31:08]} (16... Bh6 17. Nxf7 Rxf7) 17. f3 {[%emt 0:04:01][%cal Bf2f3,Bf3e4][%mdl 32]} b5 {[%emt 0:00:25]} 18. axb5 {[%emt 0:01:11]} axb5 {[%emt 0:00:17]} 19. Bxf7+ $1 {[%emt 0:00:40]} ({Weaker is} 19. Bxb5 Rb8 20. Qb4 Qxb5 $17) 19... Kh8 {[%emt 0:00:18]} 20. fxe4 {[%emt 0:00:24]} Qe5 {[%emt 0:01:26]} 21. Bd5 {[%emt 0:04:11]} Bg4 {[%emt 0:03:00]} 22. Bxa8 {[%emt 0:00:11] [#] Threatening mate with Rxf8+.} Bxd1 {[%emt 0:00:09]} 23. Rxf8+ {[%emt 0:00:18] White mates.} Bxf8 {[%emt 0:00:07]} 24. Qf7 {[%emt 0:01:02][%csl Gg5][%cal Rf7h7]} Bg7 {[%emt 0:00:45]} 25. Bc3 {[%emt 0:01:15]} Bb3 {[%emt 0:00:49]} 26. Qe8+ {[%emt 0:00:23] Weighted Error Value: White=0.08 (flawless) /Black=0.93} 1-0

[Event "Charlotte Summer IM B 2022"]
[Site "Charlotte"]
[Date "2022.07.29"]
[Round "9.3"]
[White "Avila Rodriguez, Joshua Ad"]
[Black "Kolay, Alex"]
[Result "1-0"]
[ECO "C18"]
[WhiteElo "2210"]
[BlackElo "2188"]
[Annotator "TA"]
[PlyCount "133"]
[EventDate "2022.07.24"]
[EventType "tourn"]
[EventCountry "USA"]
[SourceTitle "playchess.com"]
[Source "ChessBase"]
[SourceQuality "1"]
[TimeControl "5400+30"]

{[%evp 16,133,0,-7,6,4,15,20,14,0,0,0,1,0,0,0,1,-28,8,-23,-25,-22,0,0,0,0,0,0,0,0,47,43,56,56,56,56,56,56,56,56,56,56,56,22,47,0,0,0,14,0,4,0,47,0,47,24,47,22,22,22,22,22,22,22,22,22,22,0,0,0,0,0,0,0,0,0,0,0,0,0,515,450,509,442,635,635,613,613,606,598,516,467,409,358,906,868,1790,1541,29977,29978,29980,29981,29981,29982,29982,29981,29981,29982,29982,29983,29983,29984,29984,29985,29988,29984,29984,29983,29987,29988]} 1. e4 {[%emt 0:00:10]} e6 {[%emt 0:06:59]} 2. d4 {[%emt 0:00:09]} d5 {[%emt 0:00:06]} 3. Nc3 {[%emt 0:00:08]} Bb4 {[%emt 0:00:08]} 4. e5 {[%emt 0:00:09]} c5 {[%emt 0:00:11]} 5. a3 {[%emt 0:00:05]} Bxc3+ {[%emt 0:00:06]} 6. bxc3 {[%emt 0:00:05]} Ne7 {[%emt 0:00:08]} 7. Qg4 {[%emt 0:00:13]} Qc7 {[%emt 0:00:26]} 8. Bd3 {[%emt 0:00:21]} c4 {[%emt 0:00:46]} 9. Be2 {[%emt 0:00:54]} ({Not} 9. Qxg7 $2 Rg8 10. Qxh7 cxd3 11. Qxd3 b6 $19) 9... Qa5 {[%emt 0:01:45] C18: French: 3 Nc3 Bb4: Main line: 7 h4 and 7 Qg4.} 10. Bd2 {[%emt 0:01:30]} ({Avoid the trap} 10. Qxg7 $2 Qxc3+ 11. Kf1 Rg8 $19) 10... Nf5 {[%emt 0:00:39]} 11. Nf3 {[%emt 0:11:08] 11.h4 is the modern continuation.} Nc6 {[%emt 1:24:46][%cal Bb8c6,Bc6e7,Be7f5][%mdl 32] The position is equal.} 12. Nh4 {[%emt 0:00:32] has lost popularity (12.Qf4).} Nce7 {[%emt 0:00:00]} 13. Nxf5 {[%emt 0:06:16]} Nxf5 {[%emt 0:01:00]} 14. Qh3 {[%emt 0:00:18]} Bd7 {[%emt 0:00:00]} 15. g4 {[%emt 0:02:47]} Ne7 {[%emt 0:00:00]} 16. Bg5 {[%emt 0:01:44] [#]} (16. a4 $5) 16... Ng6 $146 {[%emt 0:01:30]} ({Predecessor:} 16... Ba4 17. Kd2 Nc6 18. Be3 O-O-O 19. f4 f6 20. g5 f5 21. Rhb1 Rd7 22. Rb2 Qd8 {½-½ (43) Michiels,B (2451)-Antic,D (2523) Kalamaria 2009}) 17. Kd2 {[%emt 1:12:31]} h6 {[%emt 0:00:00]} 18. Bh4 {[%emt 0:00:00]} Nxh4 {[%emt 0:00:00]} 19. Qxh4 {[%emt 0:00:00]} Qd8 {[%emt 0:00:00]} 20. Qxd8+ {[%emt 0:00:00]} Rxd8 {[%emt 0:00:00]} 21. Rab1 {[%emt 0:00:00]} b6 {[%emt 0:00:00]} 22. f4 {[%emt 0:02:30]} g5 {[%emt 0:00:00]} (22... f6 $11) 23. h4 {[%emt 0:00:00]} gxf4 {[%emt 0:00:00]} 24. Rbf1 {[%emt 0:00:00]} Ke7 {[%emt 0:00:00]} 25. Rxf4 {[%emt 0:00:00]} Rdg8 {[%emt 0:00:00]} 26. Ke3 {[%emt 0:00:00]} Ba4 {[%emt 0:00:00]} 27. Bd1 Rh7 {[%emt 0:00:00]} 28. Rf2 {[%emt 0:00:00]} Rgg7 {[%emt 0:00:00]} 29. Kf4 Rg8 {[%emt 0:00:00][%cal Of7f5]} 30. Rfh2 (30. Kg3 $14) 30... Rhg7 {[%emt 0:01:51]} 31. Rg2 Rh7 {[%emt 0:01:57]} 32. Rhg1 Rf8 {[%emt 0:00:28]} 33. Kg3 Rg8 {[%emt 0:00:31]} (33... f5 $11) 34. Kh3 (34. Rf1 $14) 34... Rgh8 {[%emt 0:01:04]} (34... f6 $11 {deserves consideration.}) 35. h5 Kf8 {[%emt 0:03:39]} 36. g5 {[%emt 0:00:00]} hxg5 {[%emt 0:00:00]} 37. Rxg5 {[%emt 0:00:00]} Be8 {[%emt 0:00:00][%cal Of7f6]} 38. Kh4 {[%emt 0:00:00]} Rh6 {[%emt 0:00:00]} 39. Rf1 {[%emt 0:00:00]} Ke7 {[%emt 0:02:00]} 40. Bg4 {[%emt 0:00:00]} Ba4 {[%emt 0:00:00]} 41. Rg7 {[%emt 0:00:00]} Be8 {[%emt 0:01:00]} 42. Kg5 {[%emt 0:00:00] Against Rg6+} Kf8 {[%emt 0:00:00]} 43. Rg6 {[%emt 0:00:00]} Rxg6+ {[%emt 0:00:00]} 44. hxg6 $11 {[%emt 0:00:00][%mdl 4096] Endgame Bxe6 is the strong threat. KRB-KRB} Rg8 {[%emt 0:00:00]} 45. Bh5 {[%emt 0:00:00] Black must now prevent Kf6.} Ke7 {[%emt 0:01:20][%cal Rf7g6]} 46. Rf6 {aiming for Kh6.} fxg6 $1 {[%emt 0:00:30]} 47. Bxg6 {[%emt 0:00:00]} Rh8 $2 {[%emt 0:00:30][%mdl 8192] White now steadily converts the win.} (47... b5 $11 {and Black stays safe.}) 48. Bxe8 $1 $18 {[%emt 0:00:00]} Rxe8 {[%emt 0:00:37] KR-KR} 49. Rh6 $1 {Strongly threatening Rh7+.} Rg8+ {[%emt 0:00:21] [#]} (49... Kd7 $142 50. Rh7+ Kc6 51. Rxa7 Rf8) 50. Rg6 $1 {[%emt 0:00:00]} Rf8 {[%emt 0:00:14] [#]} 51. Rg7+ $1 Kd8 {[%emt 0:01:28]} 52. Rxa7 {[%emt 0:00:00]} Rf3 {[%emt 0:00:00]} 53. Kg6 {[%emt 0:00:28]} b5 {[%emt 0:00:00]} 54. Rf7 {[%emt 0:01:03]} Rxc3 {[%emt 0:00:12]} (54... Rh3 55. Rb7 Rxc3) 55. Kf6 {[%emt 0:00:06]} Rxc2 {[%emt 0:00:41]} 56. Kxe6 {[%emt 0:00:04] Intending Kd6 and mate.} Rd2 {[%emt 0:01:04]} 57. Kd6 {[%emt 0:02:15][%cal Rf7f8] White mates.} Kc8 {[%emt 0:00:19]} 58. e6 {[%emt 0:00:34]} Rxd4 {[%emt 0:00:08]} 59. e7 {[%emt 0:00:42][%cal Re7e8]} Re4 {[%emt 0:00:02]} 60. Rf8+ {[%emt 0:00:03]} Kb7 {[%emt 0:02:04]} 61. e8=Q {[%emt 0:00:05]} Rxe8 {[%emt 0:00:00]} 62. Rxe8 {[%emt 0:00:07] KR-K3P} d4 {[%emt 0:00:00]} 63. Kc5 {[%emt 0:00:11][%csl LRb5,LRd4]} d3 {[%emt 0:00:00]} 64. Rd8 {[%emt 0:00:19]} Ka6 {[%emt 0:00:00]} 65. Kb4 {[%emt 0:00:12]} Kb6 {[%emt 0:00:00]} 66. a4 {[%emt 0:00:38]} bxa4 {[%emt 0:00:00]} 67. Kxc4 {[%emt 0:00:06] Weighted Error Value: White=0.06 (flawless) /Black=0.42} 1-0

[Event "Charlotte Summer IM B 2022"]
[Site "Charlotte"]
[Date "2022.07.28"]
[Round "9.4"]
[White "Wang, Tianqi"]
[Black "Mishra, Prateek"]
[Result "1/2-1/2"]
[ECO "C68"]
[WhiteElo "2402"]
[BlackElo "2204"]
[Annotator "TA"]
[PlyCount "27"]
[EventDate "2022.07.24"]
[EventType "tourn"]
[EventCountry "USA"]
[SourceTitle "playchess.com"]
[Source "ChessBase"]
[SourceQuality "1"]
[TimeControl "5400+30"]

{[%evp 18,27,-8,-20,0,0,-4,-3,0,0,-6,0]} 1. e4 {[%emt 0:10:33]} e5 {[%emt 0:00:05]} 2. Nf3 {[%emt 0:00:05]} Nc6 {[%emt 0:00:05]} 3. Bb5 {[%emt 0:00:05]} a6 {[%emt 0:00:05]} 4. Bxc6 {[%emt 0:00:03]} dxc6 {[%emt 0:00:04]} 5. O-O {[%emt 0:00:04]} Bg4 {[%emt 0:00:05]} 6. h3 {[%emt 0:00:06]} h5 {[%emt 0:00:05]} 7. d3 {[%emt 0:00:16]} Qf6 {[%emt 0:00:07]} 8. Be3 {[%emt 0:00:04]} Bxf3 {[%emt 0:00:05]} 9. Qxf3 {[%emt 0:00:03]} Qxf3 {[%emt 0:00:07]} 10. gxf3 {[%emt 0:00:05] The position is equal.} f5 {[%emt 0:00:08] C68: Ruy Lopez: Exchange Variation, sidelines.} 11. f4 {[%emt 0:00:44]} exf4 {[%emt 0:00:11]} 12. Bxf4 {[%emt 0:00:46] [#]} Bd6 $146 {[%emt 0:00:05]} ({Predecessor:} 12... fxe4 13. dxe4 O-O-O 14. Nc3 Bb4 15. Rad1 Re8 16. f3 Nh6 17. Kf2 Nf7 18. Rg1 Rhg8 {0-1 (40) Fiderer,L (2296)-Dill,X (2192) Baden 2018}) 13. Bxd6 {[%emt 0:04:10]} cxd6 {[%emt 0:00:07]} 14. Nd2 {[%emt 0:01:56] An uneventful encounter.  Weighted Error Value: White=0.00 (flawless) /Black=0.06 (flawless)} 1/2-1/2